[Event "Chinese Team-ch Men 2025"]
[Site "Zhang Jiakou Hebei"]
[Date "2025.04.25"]
[Round "1.1"]
[White "Xu, Minghui"]
[Black "Zhao, Jun"]
[Result "1/2-1/2"]
[Annotator "RC"]
[ECO "C55"]
[WhiteElo "2459"]
[BlackElo "2532"]
[PlyCount "87"]
[EventDate "2025.04.26"]
[EventType "team-tourn"]
[EventCountry "CHN"]
[SourceTitle "playchess.com"]
[Source "ChessBase"]
[SourceQuality "1"]
[TimeControl "5400+30"]

1. e4 {[%emt 0:00:22]} e5 {[%emt 0:02:11]} 2. Nf3 {[%emt 0:01:07]} Nc6 {[%emt 0:00:08]} 3. Bc4 {[%emt 0:02:35]} Nf6 {[%emt 0:00:28]} 4. d3 {[%emt 0:00:08]} Be7 {[%emt 0:01:24]} 5. O-O {[%emt 0:02:08]} O-O {[%emt 0:00:37]} 6. Nc3 {[%emt 0:02:35]} d6 {[%emt 0:00:30]} 7. a4 {[%emt 0:00:06]} Na5 {[%emt 0:01:46]} 8. Ba2 {[%emt 0:00:19]} c5 {[%emt 0:00:11]} 9. Bg5 {[%emt 0:14:45]} Nc6 {[%emt 0:00:41]} 10. Bxf6 {[%emt 0:07:36]} Bxf6 {[%emt 0:00:11]} 11. Nd5 {[%emt 0:00:19]} g6 {[%emt 0:16:55]} 12. c3 {[%emt 0:06:49]} Bg7 {[%emt 0:00:21]} 13. Ne1 {[%emt 0:04:19]} Be6 {[%emt 0:10:29]} 14. Nc2 {[%emt 0:00:27]} Rc8 {[%emt 0:00:29]} 15. Nce3 {[%emt 0:03:31]} Kh8 {[%emt 0:07:11]} 16. f4 {[%emt 0:05:21]} exf4 {[%emt 0:09:45]} 17. Nxf4 {[%emt 0:00:14]} Bxa2 {[%emt 0:01:57]} 18. Rxa2 {[%emt 0:00:06]} a6 {[%emt 0:00:26]} 19. Nfd5 {[%emt 0:06:41]} b5 {[%emt 0:00:33]} 20. axb5 {[%emt 0:02:10]} axb5 {[%emt 0:00:08]} 21. Ra6 {[%emt 0:02:55]} Ne5 {[%emt 0:19:29]} 22. Ng4 {[%emt 0:29:02]} f5 {[%emt 0:08:10]} 23. exf5 {[%emt 0:00:00]} gxf5 {[%emt 0:00:05]} 24. Nge3 {[%emt 0:00:00]} Qg5 {[%emt 0:03:04]} 25. Nf4 {[%emt 0:00:00]} Ng6 {[%emt 0:00:44]} 26. Qh5 {[%emt 0:00:57]} Qxh5 {[%emt 0:03:39]} 27. Nxh5 {[%emt 0:00:05]} f4 {[%emt 0:00:26]} 28. Nd5 {[%emt 0:05:24]} Be5 {[%emt 0:00:08]} 29. g4 {[%emt 0:01:13]} fxg3 {[%emt 0:05:16]} 30. hxg3 {[%emt 0:00:45]} b4 {[%emt 0:00:50]} 31. Nhf6 {[%emt 0:01:36]} Ra8 {[%emt 0:02:43]} 32. Rc6 {[%emt 0:01:36]} bxc3 {[%emt 0:01:27]} 33. bxc3 {[%emt 0:00:32]} Rfc8 {[%emt 0:03:48]} 34. Rxc8+ {[%emt 0:00:48]} Rxc8 {[%emt 0:00:03]} 35. Ne4 {[%emt 0:00:43]} Kg7 {[%emt 0:00:58]} 36. Ng5 {[%emt 0:00:35]} Bxg3 {[%emt 0:00:35]} 37. Rf7+ {[%emt 0:00:38]} Kh6 {[%emt 0:00:12]} 38. Ne4 {[%emt 0:00:17]} Be5 {[%emt 0:00:34]} 39. Ne3 {[%emt 0:00:16]} Nf4 {[%emt 0:00:29]} 40. Nf5+ {[%emt 0:00:48]} Kg6 {[%emt 0:00:09]} 41. Nexd6 {[%emt 0:00:31]} Bxd6 {[%emt 0:00:55]} 42. Nxd6 {[%emt 0:00:05]} Rd8 {[%emt 0:00:47]} 43. Rxf4 {[%emt 0:00:13]} Rxd6 {[%emt 0:00:02]} 44. Rc4 {[%emt 0:00:14]} 1/2-1/2

[Event "Chinese Team-ch Men 2025"]
[Site "Zhang Jiakou Hebei"]
[Date "2025.04.25"]
[Round "1.2"]
[White "Xiao, Tong"]
[Black "Chen, Yuan"]
[Result "1-0"]
[Annotator "RC"]
[ECO "B40"]
[WhiteElo "2496"]
[BlackElo "2286"]
[PlyCount "85"]
[EventDate "2025.04.26"]
[EventType "team-tourn"]
[EventCountry "CHN"]
[SourceTitle "playchess.com"]
[Source "ChessBase"]
[SourceQuality "1"]
[TimeControl "5400+30"]

1. e4 {[%emt 0:00:03]} c5 {[%emt 0:00:37]} 2. Nf3 {[%emt 0:00:14]} e6 {[%emt 0:00:06]} 3. c3 {[%emt 0:00:54]} d5 {[%emt 0:00:47]} 4. e5 {[%emt 0:00:06]} d4 {[%emt 0:07:02]} 5. d3 {[%emt 0:00:09]} Nc6 {[%emt 0:01:16]} 6. g3 {[%emt 0:01:13]} Nge7 {[%emt 0:06:39]} 7. Bg2 {[%emt 0:01:56]} Ng6 {[%emt 0:04:43]} 8. Qe2 {[%emt 0:02:19]} Qc7 {[%emt 0:09:44]} 9. Na3 {[%emt 0:00:04]} dxc3 {[%emt 0:09:57]} 10. O-O {[%emt 0:10:03]} Ncxe5 {[%emt 0:02:39]} 11. Nxe5 {[%emt 0:00:58]} Qxe5 {[%emt 0:00:29]} 12. Be4 {[%emt 0:00:11]} Be7 {[%emt 0:12:24]} 13. h4 {[%emt 0:12:02]} f5 {[%emt 0:16:34]} 14. Nc4 {[%emt 0:02:42]} Qc7 {[%emt 0:00:06]} 15. Bg2 {[%emt 0:05:10]} cxb2 {[%emt 0:04:38]} 16. Bxb2 {[%emt 0:00:12]} O-O {[%emt 0:00:57]} 17. h5 {[%emt 0:08:32]} Nh8 {[%emt 0:00:05]} 18. Be5 {[%emt 0:07:04]} Qd7 {[%emt 0:04:20]} 19. h6 {[%emt 0:03:30]} gxh6 {[%emt 0:03:45]} 20. Qb2 {[%emt 0:01:36]} Ng6 {[%emt 0:00:21]} 21. Bg7 {[%emt 0:01:36]} Rf7 {[%emt 0:01:32]} 22. Bxh6 {[%emt 0:03:21]} Bf6 {[%emt 0:02:08]} 23. Qa3 {[%emt 0:00:29]} Bxa1 {[%emt 0:03:59]} 24. Rxa1 {[%emt 0:00:04]} Qc7 {[%emt 0:00:04]} 25. d4 {[%emt 0:06:38]} cxd4 {[%emt 0:04:34]} 26. Rc1 {[%emt 0:02:58]} Bd7 {[%emt 0:02:08]} 27. Nd6 {[%emt 0:00:18]} Bc6 {[%emt 0:00:03]} 28. Nxf7 {[%emt 0:03:43]} Kxf7 {[%emt 0:01:10]} 29. Qa4 {[%emt 0:00:03]} Rc8 {[%emt 0:01:38]} 30. Qxd4 {[%emt 0:00:07]} Kg8 {[%emt 0:00:30]} 31. Bxc6 {[%emt 0:00:11]} bxc6 {[%emt 0:00:29]} 32. Rxc6 {[%emt 0:00:02]} Rd8 {[%emt 0:00:07]} 33. Rxc7 {[%emt 0:01:20]} Rxd4 {[%emt 0:00:02]} 34. Rg7+ {[%emt 0:00:06]} Kh8 {[%emt 0:00:05]} 35. Rxa7 {[%emt 0:00:03]} Kg8 {[%emt 0:00:56]} 36. a4 {[%emt 0:00:36]} Rd1+ {[%emt 0:00:39]} 37. Kg2 {[%emt 0:00:05]} Ra1 {[%emt 0:00:05]} 38. a5 {[%emt 0:00:10]} Ra2 {[%emt 0:00:58]} 39. a6 {[%emt 0:02:22]} Ne5 {[%emt 0:00:27]} 40. Rg7+ {[%emt 0:02:48]} Kf8 {[%emt 0:00:11]} 41. Rb7+ {[%emt 0:01:15]} Ke8 {[%emt 0:00:18]} 42. a7 {[%emt 0:00:07]} Ng4 {[%emt 0:00:20]} 43. Bc1 {[%emt 0:00:22]} 1-0

[Event "Chinese Team-ch Men 2025"]
[Site "Zhang Jiakou Hebei"]
[Date "2025.04.25"]
[Round "1.3"]
[White "Chen, Zhi"]
[Black "Huang, Renjie"]
[Result "1/2-1/2"]
[Annotator "RC"]
[ECO "D02"]
[WhiteElo "2094"]
[BlackElo "2491"]
[PlyCount "63"]
[EventDate "2025.04.26"]
[EventType "team-tourn"]
[EventCountry "CHN"]
[SourceTitle "playchess.com"]
[Source "ChessBase"]
[SourceQuality "1"]
[TimeControl "5400+30"]

1. d4 {[%emt 0:00:04]} Nf6 {[%emt 0:00:33]} 2. Bf4 {[%emt 0:00:22]} d5 {[%emt 0:00:22]} 3. e3 {[%emt 0:00:13]} e6 {[%emt 0:00:15]} 4. Nf3 {[%emt 0:00:39]} c5 {[%emt 0:00:09]} 5. Nbd2 {[%emt 0:01:39]} Nc6 {[%emt 0:00:29]} 6. c3 {[%emt 0:00:23]} Nh5 {[%emt 0:03:43]} 7. Bg3 {[%emt 0:10:57]} Nxg3 {[%emt 0:03:18]} 8. hxg3 {[%emt 0:00:04]} g6 {[%emt 0:00:10]} 9. Bd3 {[%emt 0:00:39]} Qb6 {[%emt 0:02:37]} 10. Rb1 {[%emt 0:01:54]} Bg7 {[%emt 0:00:44]} 11. O-O {[%emt 0:16:02]} O-O {[%emt 0:01:53]} 12. b4 {[%emt 0:08:40]} cxb4 {[%emt 0:18:05]} 13. cxb4 {[%emt 0:00:31]} Bd7 {[%emt 0:00:23]} 14. Nb3 {[%emt 0:02:52]} e5 {[%emt 0:06:32]} 15. Nxe5 {[%emt 0:17:33]} Nxe5 {[%emt 0:01:16]} 16. dxe5 {[%emt 0:00:08]} Bxe5 {[%emt 0:00:47]} 17. Be2 {[%emt 0:08:44]} Rfd8 {[%emt 0:06:13]} 18. Qxd5 {[%emt 0:03:58]} Bc3 {[%emt 0:04:04]} 19. Bc4 {[%emt 0:07:07]} Be6 {[%emt 0:02:48]} 20. Qb5 {[%emt 0:00:41]} Qxb5 {[%emt 0:01:54]} 21. Bxb5 {[%emt 0:00:03]} Bf5 {[%emt 0:00:09]} 22. Rbc1 {[%emt 0:00:43]} Bxb4 {[%emt 0:00:22]} 23. Nd4 {[%emt 0:06:53]} Be4 {[%emt 0:00:34]} 24. Rc4 {[%emt 0:01:46]} Bd6 {[%emt 0:05:25]} 25. Ne6 {[%emt 0:03:08]} Bxg2 {[%emt 0:00:48]} 26. Kxg2 {[%emt 0:00:12]} fxe6 {[%emt 0:00:02]} 27. Re4 {[%emt 0:00:31]} e5 {[%emt 0:00:33]} 28. f4 {[%emt 0:00:24]} exf4 {[%emt 0:00:35]} 29. exf4 {[%emt 0:00:18]} Bc5 {[%emt 0:02:48]} 30. f5 {[%emt 0:00:36]} Rd2+ {[%emt 0:04:26]} 31. Kh3 {[%emt 0:00:04]} Rf8 {[%emt 0:02:08]} 32. f6 {[%emt 0:03:56]} 1/2-1/2

[Event "Chinese Team-ch Men 2025"]
[Site "Zhang Jiakou Hebei"]
[Date "2025.04.25"]
[Round "1.4"]
[White "Wang, Yanbin"]
[Black "Gao, Kai"]
[Result "1-0"]
[Annotator "ChessBase"]
[ECO "D31"]
[WhiteElo "2454"]
[BlackElo "1894"]
[PlyCount "70"]
[EventDate "2025.04.26"]
[EventType "team-tourn"]
[EventCountry "CHN"]
[SourceTitle "playchess.com"]
[Source "ChessBase"]
[SourceQuality "1"]
[TimeControl "5400+30"]

1. c4 {[%emt 0:00:03]} e6 {[%emt 0:00:11]} 2. Nc3 {[%emt 0:00:05]} d5 {[%emt 0:00:08]} 3. cxd5 {[%emt 0:00:04]} exd5 {[%emt 0:00:03]} 4. d4 {[%emt 0:00:04]} c6 {[%emt 0:00:53]} 5. Bf4 {[%emt 0:01:05]} Bd6 {[%emt 0:00:26]} 6. Bxd6 {[%emt 0:00:55]} Qxd6 {[%emt 0:00:02]} 7. e3 {[%emt 0:00:05]} Nf6 {[%emt 0:04:54]} 8. Bd3 {[%emt 0:00:07]} O-O {[%emt 0:02:34]} 9. h3 {[%emt 0:00:30]} Re8 {[%emt 0:02:10]} 10. Qc2 {[%emt 0:01:26]} Nbd7 {[%emt 0:11:30]} 11. Nf3 {[%emt 0:03:35]} a6 {[%emt 0:12:12]} 12. g4 {[%emt 0:02:12]} g6 {[%emt 0:08:48]} 13. O-O-O {[%emt 0:06:22]} b5 {[%emt 0:02:53]} 14. h4 {[%emt 0:01:29]} c5 {[%emt 0:09:33]} 15. h5 {[%emt 0:03:16]} Nf8 {[%emt 0:16:45]} 16. hxg6 {[%emt 0:01:51]} fxg6 {[%emt 0:00:24]} 17. g5 {[%emt 0:10:04]} cxd4 {[%emt 0:13:19]} 18. Nxd4 {[%emt 0:01:35]} b4 {[%emt 0:01:15]} 19. Nce2 {[%emt 0:07:01]} Nh5 {[%emt 0:03:15]} 20. Kb1 {[%emt 0:00:35]} Bd7 {[%emt 0:00:54]} 21. e4 {[%emt 0:02:26]} Nf4 {[%emt 0:02:03]} 22. Nxf4 {[%emt 0:02:43]} Qxf4 {[%emt 0:00:06]} 23. Qb3 {[%emt 0:00:50]} Kh8 {[%emt 0:03:06]} 24. Qxd5 {[%emt 0:07:14]} Rad8 {[%emt 0:01:25]} 25. Ne2 {[%emt 0:00:27]} Qe5 {[%emt 0:03:07]} 26. Qxe5+ {[%emt 0:01:09]} Rxe5 {[%emt 0:00:01]} 27. f4 {[%emt 0:00:07]} Ree8 {[%emt 0:00:22]} 28. e5 {[%emt 0:02:32]} Bc6 {[%emt 0:00:29]} 29. Rhe1 {[%emt 0:02:41]} a5 {[%emt 0:00:34]} 30. Bc4 {[%emt 0:00:25]} Be4+ {[%emt 0:00:42]} 31. Ka1 {[%emt 0:00:05]} Rc8 {[%emt 0:00:19]} 32. b3 {[%emt 0:00:34]} Bf3 {[%emt 0:01:26]} 33. Rd6 {[%emt 0:00:13]} Bg4 {[%emt 0:00:34]} 34. Nd4 {[%emt 0:00:24]} Re7 {[%emt 0:00:30]} 35. e6 {[%emt 0:00:35]} Rc5 {[%emt 0:01:07]} 1-0

[Event "Chinese Team-ch Men 2025"]
[Site "Zhang Jiakou Hebei"]
[Date "2025.04.25"]
[Round "1.5"]
[White "Dai, Changren"]
[Black "Cao, Qingfeng"]
[Result "1-0"]
[Annotator "RC"]
[ECO "A04"]
[WhiteElo "2527"]
[BlackElo "2443"]
[PlyCount "135"]
[EventDate "2025.04.26"]
[EventType "team-tourn"]
[EventCountry "CHN"]
[SourceTitle "playchess.com"]
[Source "ChessBase"]
[SourceQuality "1"]
[TimeControl "5400+30"]

1. Nf3 {[%emt 0:00:03]} Nf6 {[%emt 0:02:37]} 2. g3 {[%emt 0:00:07]} b6 {[%emt 0:07:37]} 3. Bg2 {[%emt 0:00:49]} Bb7 {[%emt 0:00:08]} 4. O-O {[%emt 0:00:06]} c5 {[%emt 0:03:09]} 5. Re1 {[%emt 0:02:48]} d5 {[%emt 0:01:32]} 6. d3 {[%emt 0:00:57]} g6 {[%emt 0:04:42]} 7. Nbd2 {[%emt 0:03:54]} Bg7 {[%emt 0:09:09]} 8. e4 {[%emt 0:00:10]} dxe4 {[%emt 0:04:00]} 9. dxe4 {[%emt 0:00:06]} Nfd7 {[%emt 0:00:43]} 10. e5 {[%emt 0:05:25]} Nf8 {[%emt 0:00:43]} 11. c3 {[%emt 0:09:16]} Qd7 {[%emt 0:13:20]} 12. a4 {[%emt 0:11:18]} Ne6 {[%emt 0:01:52]} 13. a5 {[%emt 0:01:28]} O-O {[%emt 0:01:53]} 14. Nc4 {[%emt 0:03:49]} b5 {[%emt 0:05:29]} 15. a6 {[%emt 0:10:34]} Bd5 {[%emt 0:01:02]} 16. Ne3 {[%emt 0:03:15]} Be4 {[%emt 0:03:21]} 17. c4 {[%emt 0:06:41]} bxc4 {[%emt 0:06:09]} 18. Qxd7 {[%emt 0:00:31]} Nxd7 {[%emt 0:00:05]} 19. Nxc4 {[%emt 0:00:06]} Bd5 {[%emt 0:01:21]} 20. Nfd2 {[%emt 0:12:22]} Bxg2 {[%emt 0:00:19]} 21. Kxg2 {[%emt 0:00:02]} Nd4 {[%emt 0:00:43]} 22. Ra4 {[%emt 0:02:24]} f6 {[%emt 0:07:49]} 23. exf6 {[%emt 0:03:25]} exf6 {[%emt 0:00:56]} 24. Nf3 {[%emt 0:03:51]} f5 {[%emt 0:04:46]} 25. Bf4 {[%emt 0:04:29]} Rfe8 {[%emt 0:01:51]} 26. Raa1 {[%emt 0:04:05]} Nf8 {[%emt 0:01:57]} 27. Nd6 {[%emt 0:07:19]} Rxe1 {[%emt 0:05:20]} 28. Rxe1 {[%emt 0:00:02]} Nfe6 {[%emt 0:00:27]} 29. Be5 {[%emt 0:02:17]} Nxf3 {[%emt 0:01:38]} 30. Kxf3 {[%emt 0:00:02]} Rd8 {[%emt 0:00:11]} 31. Nb7 {[%emt 0:01:56]} Rd3+ {[%emt 0:00:38]} 32. Kg2 {[%emt 0:00:12]} Bxe5 {[%emt 0:08:52]} 33. Rxe5 {[%emt 0:00:01]} Nc7 {[%emt 0:00:01]} 34. Nxc5 {[%emt 0:00:31]} Rd6 {[%emt 0:00:04]} 35. Re7 {[%emt 0:01:33]} Nxa6 {[%emt 0:00:03]} 36. Na4 {[%emt 0:02:02]} Nb4 {[%emt 0:01:11]} 37. Rxa7 {[%emt 0:00:03]} Rd2 {[%emt 0:00:07]} 38. Kf3 {[%emt 0:00:19]} Nc6 {[%emt 0:02:51]} 39. Rc7 {[%emt 0:00:56]} Ne5+ {[%emt 0:00:26]} 40. Ke3 {[%emt 0:00:20]} Rd3+ {[%emt 0:00:01]} 41. Ke2 {[%emt 0:00:23]} Rb3 {[%emt 0:00:10]} 42. Rc5 {[%emt 0:00:52]} Nd7 {[%emt 0:00:37]} 43. Rc7 {[%emt 0:00:13]} Nf6 {[%emt 0:00:41]} 44. Rc6 {[%emt 0:00:41]} Kf7 {[%emt 0:00:14]} 45. Rb6 {[%emt 0:00:11]} Rxb6 {[%emt 0:00:12]} 46. Nxb6 {[%emt 0:00:01]} Ke6 {[%emt 0:00:13]} 47. f3 {[%emt 0:00:31]} Kd6 {[%emt 0:01:04]} 48. Nc4+ {[%emt 0:00:24]} Kc5 {[%emt 0:00:14]} 49. Kd3 {[%emt 0:00:13]} Nd5 {[%emt 0:00:13]} 50. Ne5 {[%emt 0:00:59]} Nb4+ {[%emt 0:00:23]} 51. Kc3 {[%emt 0:00:17]} Nd5+ {[%emt 0:00:04]} 52. Kd3 {[%emt 0:00:03]} Nb4+ {[%emt 0:00:04]} 53. Kd2 {[%emt 0:00:58]} Kd4 {[%emt 0:00:24]} 54. Nd7 {[%emt 0:00:05]} h6 {[%emt 0:00:46]} 55. Nf8 {[%emt 0:01:37]} g5 {[%emt 0:00:05]} 56. Ke2 {[%emt 0:00:17]} Nd3 {[%emt 0:00:54]} 57. Ne6+ {[%emt 0:00:04]} Kc4 {[%emt 0:00:02]} 58. b3+ {[%emt 0:00:10]} Kc3 {[%emt 0:00:03]} 59. Ke3 {[%emt 0:00:37]} Nb4 {[%emt 0:00:36]} 60. Ng7 {[%emt 0:01:36]} Nd5+ {[%emt 0:00:05]} 61. Ke2 {[%emt 0:00:03]} Ne7 {[%emt 0:02:12]} 62. g4 {[%emt 0:00:03]} fxg4 {[%emt 0:01:30]} 63. fxg4 {[%emt 0:00:01]} Kxb3 {[%emt 0:00:09]} 64. Nf5 {[%emt 0:01:29]} Ng6 {[%emt 0:01:57]} 65. Ke3 {[%emt 0:00:10]} Kc4 {[%emt 0:00:32]} 66. Ke4 {[%emt 0:00:07]} Nf4 {[%emt 0:00:28]} 67. Nxh6 {[%emt 0:00:34]} Nh3 {[%emt 0:00:32]} 68. Nf7 {[%emt 0:00:21]} 1-0

[Event "Chinese Team-ch Men 2025"]
[Site "Zhang Jiakou Hebei"]
[Date "2025.04.25"]
[Round "1.6"]
[White "Dong, Hongfu"]
[Black "Wang, Shixu B"]
[Result "1-0"]
[Annotator "ChessBase"]
[ECO "B97"]
[WhiteElo "2238"]
[BlackElo "2452"]
[PlyCount "49"]
[EventDate "2025.04.26"]
[EventType "team-tourn"]
[EventCountry "CHN"]
[SourceTitle "playchess.com"]
[Source "ChessBase"]
[SourceQuality "1"]
[TimeControl "5400+30"]

1. e4 {[%emt 0:00:07]} c5 {[%emt 0:00:15]} 2. Nf3 {[%emt 0:00:10]} d6 {[%emt 0:00:07]} 3. d4 {[%emt 0:00:08]} cxd4 {[%emt 0:00:07]} 4. Nxd4 {[%emt 0:00:08]} Nf6 {[%emt 0:00:07]} 5. Nc3 {[%emt 0:00:17]} a6 {[%emt 0:00:08]} 6. Bg5 {[%emt 0:01:43]} e6 {[%emt 0:00:35]} 7. f4 {[%emt 0:00:31]} h6 {[%emt 0:00:11]} 8. Bh4 {[%emt 0:00:13]} Qb6 {[%emt 0:00:11]} 9. Qd2 {[%emt 0:02:46]} Qxb2 {[%emt 0:01:11]} 10. Rb1 {[%emt 0:00:11]} Qa3 {[%emt 0:00:08]} 11. e5 {[%emt 0:00:13]} dxe5 {[%emt 0:04:34]} 12. fxe5 {[%emt 0:00:08]} g5 {[%emt 0:04:54]} 13. Bg3 {[%emt 0:10:00]} Nh5 {[%emt 0:02:54]} 14. Ne4 {[%emt 0:02:15]} Nxg3 {[%emt 0:14:37]} 15. hxg3 {[%emt 0:05:23]} Nd7 {[%emt 0:00:56]} 16. Be2 {[%emt 0:14:38]} Be7 {[%emt 0:08:26]} 17. Rb3 {[%emt 0:09:35]} Qa4 {[%emt 0:22:13]} 18. Nd6+ {[%emt 0:04:09]} Bxd6 {[%emt 0:00:08]} 19. exd6 {[%emt 0:00:04]} e5 {[%emt 0:11:04]} 20. Nf5 {[%emt 0:06:03]} Nc5 {[%emt 0:06:24]} 21. Qc3 {[%emt 0:03:39]} Nd7 {[%emt 0:09:26]} 22. Ne7 {[%emt 0:01:16]} Qe4 {[%emt 0:07:17]} 23. Nxc8 {[%emt 0:00:31]} Qxg2 {[%emt 0:00:05]} 24. Rf1 {[%emt 0:00:14]} h5 {[%emt 0:01:42]} 25. Nb6 {[%emt 0:01:06]} 1-0

[Event "Chinese Team-ch Men 2025"]
[Site "Zhang Jiakou Hebei"]
[Date "2025.04.25"]
[Round "1.7"]
[White "Chu, Weichao"]
[Black "Xia, Jinnan"]
[Result "1-0"]
[Annotator "ChessBase"]
[ECO "E00"]
[WhiteElo "2406"]
[BlackElo "1959"]
[PlyCount "79"]
[EventDate "2025.04.26"]
[EventType "team-tourn"]
[EventCountry "CHN"]
[SourceTitle "playchess.com"]
[Source "ChessBase"]
[SourceQuality "1"]
[TimeControl "5400+30"]

1. d4 {[%emt 0:00:03]} Nf6 {[%emt 0:00:13]} 2. c4 {[%emt 0:00:09]} e6 {[%emt 0:00:06]} 3. g3 {[%emt 0:00:10]} Bb4+ {[%emt 0:01:52]} 4. Nd2 {[%emt 0:00:37]} c5 {[%emt 0:02:13]} 5. a3 {[%emt 0:00:41]} Bxd2+ {[%emt 0:00:14]} 6. Qxd2 {[%emt 0:00:10]} Nc6 {[%emt 0:00:39]} 7. dxc5 {[%emt 0:15:01]} Ne4 {[%emt 0:00:22]} 8. Qe3 {[%emt 0:00:29]} Qa5+ {[%emt 0:00:20]} 9. Bd2 {[%emt 0:00:08]} Nxd2 {[%emt 0:00:17]} 10. Qxd2 {[%emt 0:00:08]} Qxc5 {[%emt 0:00:03]} 11. Rc1 {[%emt 0:03:26]} Qd4 {[%emt 0:01:48]} 12. Qc2 {[%emt 0:23:32]} O-O {[%emt 0:04:54]} 13. Bg2 {[%emt 0:03:53]} Qf6 {[%emt 0:02:58]} 14. Nf3 {[%emt 0:04:53]} d6 {[%emt 0:03:22]} 15. h4 {[%emt 0:02:25]} e5 {[%emt 0:02:25]} 16. O-O {[%emt 0:06:57]} Bf5 {[%emt 0:23:15]} 17. Qc3 {[%emt 0:00:24]} Be4 {[%emt 0:08:22]} 18. Qe3 {[%emt 0:07:11]} Qf5 {[%emt 0:05:00]} 19. Rfd1 {[%emt 0:06:41]} Rad8 {[%emt 0:00:55]} 20. b4 {[%emt 0:00:30]} b6 {[%emt 0:05:10]} 21. Bh3 {[%emt 0:07:06]} Qxh3 {[%emt 0:00:53]} 22. Qxe4 {[%emt 0:00:05]} Qc8 {[%emt 0:05:42]} 23. Ng5 {[%emt 0:04:29]} g6 {[%emt 0:03:03]} 24. h5 {[%emt 0:01:24]} Nd4 {[%emt 0:09:15]} 25. Kg2 {[%emt 0:00:40]} Qf5 {[%emt 0:05:52]} 26. Qxf5 {[%emt 0:00:13]} gxf5 {[%emt 0:02:03]} 27. e3 {[%emt 0:00:16]} Nc6 {[%emt 0:00:02]} 28. Rd2 {[%emt 0:01:24]} Rd7 {[%emt 0:03:47]} 29. Rcd1 {[%emt 0:02:16]} Rfd8 {[%emt 0:00:09]} 30. h6 {[%emt 0:00:22]} Kf8 {[%emt 0:06:18]} 31. Nxh7+ {[%emt 0:01:22]} Ke7 {[%emt 0:00:05]} 32. Ng5 {[%emt 0:00:09]} Rh8 {[%emt 0:00:33]} 33. Rxd6 {[%emt 0:01:49]} Rxd6 {[%emt 0:01:31]} 34. Rxd6 {[%emt 0:00:06]} Nd8 {[%emt 0:01:43]} 35. c5 {[%emt 0:01:11]} f6 {[%emt 0:00:54]} 36. Nf3 {[%emt 0:00:16]} bxc5 {[%emt 0:01:13]} 37. bxc5 {[%emt 0:00:07]} Ne6 {[%emt 0:00:22]} 38. Nh4 {[%emt 0:00:32]} Nxc5 {[%emt 0:00:09]} 39. Rc6 {[%emt 0:00:56]} Ne4 {[%emt 0:00:32]} 40. Ng6+ {[%emt 0:00:14]} 1-0

[Event "Chinese Team-ch Men 2025"]
[Site "Zhang Jiakou Hebei"]
[Date "2025.04.25"]
[Round "1.8"]
[White "Pan, Xizhi"]
[Black "Xi, Qi"]
[Result "0-1"]
[Annotator "ChessBase"]
[ECO "D02"]
[WhiteElo "1821"]
[BlackElo "2257"]
[PlyCount "92"]
[EventDate "2025.04.26"]
[EventType "team-tourn"]
[EventCountry "CHN"]
[SourceTitle "playchess.com"]
[Source "ChessBase"]
[SourceQuality "1"]
[TimeControl "5400+30"]

1. d4 {[%emt 0:00:05]} d5 {[%emt 0:00:11]} 2. Nf3 {[%emt 0:00:15]} Nf6 {[%emt 0:00:08]} 3. Bf4 {[%emt 0:00:10]} c5 {[%emt 0:00:36]} 4. e3 {[%emt 0:00:29]} Nc6 {[%emt 0:00:16]} 5. c3 {[%emt 0:03:00]} Qb6 {[%emt 0:00:57]} 6. Qc2 {[%emt 0:00:21]} g6 {[%emt 0:02:29]} 7. dxc5 {[%emt 0:02:13]} Qxc5 {[%emt 0:00:26]} 8. Nbd2 {[%emt 0:00:14]} Bg7 {[%emt 0:01:15]} 9. Bd3 {[%emt 0:02:33]} O-O {[%emt 0:01:41]} 10. Bc7 {[%emt 0:02:27]} e6 {[%emt 0:05:14]} 11. O-O {[%emt 0:02:45]} Nh5 {[%emt 0:06:20]} 12. e4 {[%emt 0:03:52]} e5 {[%emt 0:13:05]} 13. b4 {[%emt 0:01:21]} Qe7 {[%emt 0:00:26]} 14. exd5 {[%emt 0:00:05]} Qxc7 {[%emt 0:00:08]} 15. dxc6 {[%emt 0:00:10]} bxc6 {[%emt 0:02:36]} 16. Nb3 {[%emt 0:05:13]} Nf4 {[%emt 0:11:49]} 17. Rae1 {[%emt 0:01:47]} Bg4 {[%emt 0:02:05]} 18. Ng5 {[%emt 0:03:55]} Qd8 {[%emt 0:02:41]} 19. Ne4 {[%emt 0:07:39]} Qxd3 {[%emt 0:00:47]} 20. Qxd3 {[%emt 0:00:16]} Nxd3 {[%emt 0:00:02]} 21. Re3 {[%emt 0:00:25]} Rad8 {[%emt 0:00:17]} 22. f3 {[%emt 0:00:34]} Be6 {[%emt 0:00:32]} 23. Rd1 {[%emt 0:00:21]} Nf4 {[%emt 0:01:18]} 24. Rxd8 {[%emt 0:01:00]} Rxd8 {[%emt 0:00:02]} 25. Na5 {[%emt 0:00:13]} Rd1+ {[%emt 0:01:01]} 26. Kf2 {[%emt 0:00:11]} f5 {[%emt 0:01:58]} 27. Nc5 {[%emt 0:00:32]} Rd2+ {[%emt 0:00:53]} 28. Kf1 {[%emt 0:00:55]} Bxa2 {[%emt 0:00:38]} 29. g3 {[%emt 0:00:49]} Nd5 {[%emt 0:00:06]} 30. Re1 {[%emt 0:00:21]} Nxc3 {[%emt 0:00:15]} 31. Nxc6 {[%emt 0:00:09]} Bc4+ {[%emt 0:00:09]} 32. Kg1 {[%emt 0:01:03]} Ne2+ {[%emt 0:00:46]} 33. Kf2 {[%emt 0:00:10]} Ra2 {[%emt 0:01:28]} 34. Ne7+ {[%emt 0:03:10]} Kf7 {[%emt 0:00:18]} 35. Nc8 {[%emt 0:00:08]} Nd4+ {[%emt 0:00:12]} 36. Ke3 {[%emt 0:00:21]} Bh6+ {[%emt 0:00:47]} 37. f4 {[%emt 0:00:30]} Nc2+ {[%emt 0:00:02]} 38. Kd2 {[%emt 0:00:09]} Nxe1+ {[%emt 0:00:05]} 39. Kxe1 {[%emt 0:00:40]} Bf8 {[%emt 0:00:56]} 40. fxe5 {[%emt 0:00:56]} Re2+ {[%emt 0:00:10]} 41. Kd1 {[%emt 0:00:06]} Rxe5 {[%emt 0:00:08]} 42. Nxa7 {[%emt 0:00:31]} Bxc5 {[%emt 0:00:02]} 43. bxc5 {[%emt 0:00:44]} Rxc5 {[%emt 0:00:02]} 44. Ke1 {[%emt 0:00:12]} Rc7 {[%emt 0:00:05]} 45. Kf2 {[%emt 0:01:05]} Rxa7 {[%emt 0:00:02]} 46. h3 {[%emt 0:00:16]} Ke6 {[%emt 0:00:03]} 0-1